[Event "FIDE WSCC 50 2022"]
[Site "Assisi"]
[Date "2022.11.15"]
[Round "1.26"]
[White "Arkell, Keith C"]
[Black "Balzer, Lars"]
[Result "1/2-1/2"]
[ECO "E62"]
[WhiteElo "2408"]
[BlackElo "2020"]
[Annotator "TA"]
[PlyCount "98"]
[EventDate "2022.11.14"]
[EventType "swiss"]
[EventCountry "ITA"]
[SourceTitle "playchess.com"]
[Source "ChessBase"]
[SourceQuality "1"]
[TimeControl "40/5400+30:1800+30"]

{[%evp 20,98,83,74,85,84,86,79,113,60,65,52,63,49,78,36,42,0,0,0,0,0,0,0,0,0,2,0,24,24,34,21,50,50,59,56,53,53,62,59,70,45,61,53,60,21,53,6,6,6,6,0,0,0,0,0,0,0,0,0,0,0,0,0,0,0,0,0,0,0,0,0,0,0,0,0,0,0,0,0,0]} 1. d4 g6 2. c4 Bg7 3. Nc3 d6 4. g3 Nf6 5. Bg2 O-O 6. Nf3 c6 7. O-O Qa5 8. e4 Bg4 9. h3 Bxf3 10. Bxf3 e5 {[#]} 11. d5 $1 cxd5 {E62: King's Indian: Fianchetto: 6...c6 and Panno Variation (6...Nc6) without ...a6.} 12. cxd5 Rc8 13. Be3 a6 {White is better.} 14. Qb3 (14. g4 $16) 14... Nbd7 $14 {[#]} 15. Rfc1 $146 (15. Qxb7 $2 {perishes.} Rab8 16. b4 (16. Qa7 $2 Rc7 $19) 16... Qa3 $19) ({Predecessor:} 15. a4 Rc7 16. Qa3 Rc4 17. Rfc1 Rac8 18. Rab1 Qb4 19. Qxb4 Rxb4 20. b3 b5 21. a5 {1-0 (52) Bratuszewski,J (2076)-Marchal,L (1898) Blankenberge 2017}) 15... h5 16. Qd1 ({Inferior is} 16. Qxb7 Rab8 17. b4 Qa3 $17) 16... Qd8 17. a4 Kh7 18. a5 Bh6 $1 19. Bxh6 Kxh6 20. Qd2+ Kg7 21. Na4 Rxc1+ 22. Rxc1 Rc8 23. b4 (23. Rxc8 {simplifies} Qxc8 24. b3 Qb8 25. h4) 23... Nh7 24. h4 Nhf6 (24... Rxc1+ {simplifies} 25. Qxc1 Nhf6 26. Nb2 Qb8) 25. Bg2 Ng4 26. f3 Nh6 {[%cal Bg4h6,Bh6g8,Bg8f6][%mdl 32]} 27. Bh3 Rxc1+ 28. Qxc1 Ng8 29. Nb2 Ngf6 30. Nd3 Qb8 31. Kg2 {White is more active.} Kf8 32. f4 Kg7 33. Bxd7 (33. Nf2 $14) 33... Nxd7 $11 {The position is equal.} 34. fxe5 Nxe5 35. Nxe5 dxe5 $14 {[%mdl 4096] Endgame KQ-KQ} 36. Qc5 {[#] Threatens to win with d6.} Qe8 $1 37. d6 {And now Qd5 would win.} Qe6 38. Kg1 Kg8 $1 39. Kf1 Qh3+ 40. Ke2 Qg2+ 41. Kd3 Qf1+ 42. Kd2 {[%cal Od6d7] d7! is the strong threat.} Qg2+ 43. Kc3 {Black must now prevent d7.} Qf3+ 44. Kb2 {Hoping for d7.} Qe2+ 45. Kb3 Qd3+ 46. Qc3 Qxd6 {Strongly threatening ...Kg7.} 47. Qc8+ Kg7 48. Qxb7 Qd3+ 49. Kb2 Qd2+ {Weighted Error Value: White=0.08 (flawless) /Black=0.06 (flawless)} 1/2-1/2

[Event "FIDE WSCC 50 2022"]
[Site "Assisi"]
[Date "2022.11.15"]
[Round "1.27"]
[White "Ceccarini, Marco"]
[Black "Bellia, Fabrizio"]
[Result "1/2-1/2"]
[ECO "B32"]
[WhiteElo "2014"]
[BlackElo "2398"]
[Annotator "TA"]
[PlyCount "119"]
[EventDate "2022.11.14"]
[EventType "swiss"]
[EventCountry "ITA"]
[SourceTitle "playchess.com"]
[Source "ChessBase"]
[SourceQuality "1"]
[TimeControl "40/5400+30:1800+30"]

{[%evp 24,119,27,23,24,0,0,0,0,0,0,0,0,0,1,1,1,1,1,2,10,6,7,0,12,0,12,0,0,0,0,0,0,-8,0,0,0,0,0,-17,-8,-8,0,0,0,0,0,0,0,0,0,0,0,0,0,0,0,0,0,0,0,0,0,0,0,0,0,0,0,0,0,0,0,0,0,0,0,0,0,0,0,0,0,0,0,0,0,0,0,0,0,0,0,0,0,0,0,0]} 1. e4 c5 2. Nf3 {[%cal Bg1f3,Bf3d4,Bd4b5][%mdl 32]} Nc6 3. d4 cxd4 4. Nxd4 e5 5. Nb5 d6 6. N1c3 a6 7. Na3 b5 8. Nd5 Nge7 9. c4 Nd4 10. Be3 Nxd5 11. cxd5 Be7 12. Bd3 O-O 13. O-O Bd7 {B32: Sicilian: Löwenthal and Kalashnikov Variations.} 14. Nc2 (14. Rc1 {seems wilder.} Rc8 15. Qd2 f5 16. Bxd4 exd4 17. exf5 Bxf5 18. Rc6) 14... Nxc2 $1 {The position is equal.} 15. Qxc2 Bg5 16. Qd2 Bxe3 17. Qxe3 {[#]} a5 $146 ({Predecessor:} 17... Qa5 18. a3 Rfc8 19. h4 Qd8 20. g3 Rc5 21. Rac1 Rac8 22. Rxc5 Rxc5 23. Rc1 Qc7 24. Rxc5 dxc5 {1-0 (45) Shtyka,S (2175)-Krishnan,V (2228) Chess.com INT 2021}) 18. a3 a4 19. b4 axb3 20. Rfb1 Qa5 21. Rxb3 Rfc8 22. Rab1 Rc5 23. h3 h6 24. Qe2 Rb8 25. Qe1 Qxe1+ 26. Rxe1 Ra8 27. Reb1 {[%cal Rd3b5]} Ra5 28. f3 Kf8 29. h4 Ke7 30. Kf2 f5 31. g3 h5 32. Ke3 fxe4 33. fxe4 Be8 34. Kf2 Bg6 35. Ke3 {[%cal Rd3b5]} Be8 36. Kf2 Bd7 37. Ke3 g6 38. Kf2 Ra4 39. Ke3 Rc7 40. Kf2 Rc8 41. Ke3 Ra7 42. Kf2 Kf6 43. Ke3 Kg7 44. Kf2 Rf8+ 45. Ke3 Rc8 46. Kf2 Ra4 47. Ke3 Ra5 48. Kf2 Rf8+ 49. Ke3 Bg4 {Strongly threatening ...Rf3+.} 50. Rf1 {Inhibits Rf3+.} Rxf1 51. Bxf1 $11 {[%mdl 4096] Endgame KRB-KRB} Bd7 52. Bd3 Kf6 53. Be2 Ke7 54. Bd3 Kd8 55. Kf2 Kc7 56. Ke3 Kb6 57. Kf2 Ra7 58. Ke3 Ka5 59. Rc3 Kb6 60. Rb3 {Not much happened in this game.  Weighted Error Value: White=0.02 (flawless) /Black=0.01 (flawless)} 1/2-1/2

[Event "FIDE WSCC 50 2022"]
[Site "Assisi"]
[Date "2022.11.15"]
[Round "1.28"]
[White "Antonio, Rogelio Jr"]
[Black "Tsyn, Igor"]
[Result "1-0"]
[ECO "C19"]
[WhiteElo "2397"]
[BlackElo "2014"]
[Annotator "TA"]
[PlyCount "107"]
[EventDate "2022.11.14"]
[EventType "swiss"]
[EventCountry "ITA"]
[SourceTitle "playchess.com"]
[Source "ChessBase"]
[SourceQuality "1"]
[TimeControl "40/5400+30:1800+30"]

{[%evp 15,107,-15,-9,-16,0,0,-8,-7,0,0,0,-15,-19,-83,-96,-107,-103,-109,-56,-158,-130,-103,-39,-83,-47,-105,-106,-118,-104,-131,-95,-114,-100,-112,-70,-63,-63,-37,-24,-15,-14,-16,0,0,0,-47,0,0,0,0,0,0,14,0,0,0,0,0,59,0,0,0,0,-8,0,0,0,0,0,0,0,0,467,440,467,467,566,535,554,544,906,844,755,714,664,645,5193,4627,4622,4622,1085,1003,29984,29985]} 1. e4 e6 2. d4 d5 3. Nc3 Bb4 4. e5 Ne7 5. a3 Bxc3+ 6. bxc3 c5 7. h4 Qc7 8. Nf3 b6 9. a4 {C19: French: 3 Nc3 Bb4: Main line: 7 Nf3 and 7 a4.} Ba6 10. Bb5+ Bxb5 11. axb5 {The position is equal.} a5 {[#]} 12. O-O $146 ({Predecessor:} 12. bxa6 Rxa6 13. Rxa6 Nxa6 14. O-O Qc6 15. h5 h6 16. Bf4 Nc7 17. Qd2 Kd7 18. Rb1 {1-0 (43) Karjakin,S (2773)-Duda,J (2737) Chess.com INT 2018}) 12... h6 13. Nh2 Nd7 14. Qg4 (14. Ng4 $11 {remains equal.}) 14... Nf5 $17 15. Nf3 {[%cal Oc3c4]} cxd4 16. cxd4 Qc4 (16... O-O $1 $17 17. Qf4 h5) 17. Qf4 ({Better is} 17. Ba3 $1 $15) 17... Nf8 ({Worse is} 17... Qxc2 18. Ba3 $15) 18. Qd2 Rc8 (18... Qxb5 $6 19. g4 Ne7 20. Ba3 $11) (18... g5 $1 $17 {And now ...g4 would win.} 19. Qd3 Qxd3 20. cxd3 g4) 19. Ba3 {[%cal Oc2c3]} (19. g4 Ne7 20. Ba3 Qc3 $19) 19... Qc3 ({Of course not} 19... Qxc2 $6 20. Qxc2 Rxc2 21. Rfc1 Rxc1+ 22. Rxc1 $11) (19... h5 {seems wilder.} 20. Bxf8 Rxf8 21. c3 Qxc3 22. Rac1 Qxd2 23. Rxc8+ Ke7) 20. Rfd1 (20. Qxc3 $15 Rxc3 21. Rfc1) 20... Qxd2 ({But not} 20... Qxc2 21. Rac1 Qxd2 22. Rxc8+ Kd7 23. Rxd2 $16) (20... Kd7 {looks sharper.} 21. Ra2 Qxd2 22. Rxd2 h5) 21. Rxd2 h5 22. g3 Rc4 23. Bb2 Nd7 24. c3 O-O 25. Re2 Rfc8 26. Ne1 Kf8 27. Ng2 g6 28. Kh2 Rxc3 29. Bxc3 Rxc3 30. Rd2 (30. Rd1 $11) 30... Rc4 (30... f6 $15) 31. Rad1 $11 f6 32. exf6 Nxf6 33. f3 {Prevents Ne4.} Ne8 34. Nf4 Kf7 35. Nd3 Kg7 36. Ne5 Rb4 (36... Rc3 $11) 37. Kh3 (37. g4 $1 $14 hxg4 38. fxg4) 37... Ned6 38. Nc6 Rxb5 39. Nd8 Kf6 {...Ne3 is the strong threat.} 40. Re2 {Against Ne3} Rb3 41. Rxe6+ Kg7 42. Rf1 Nc4 43. Nc6 Nce3 $2 {[%mdl 8192] [#]} (43... Kf7 $11 {and Black has nothing to worry.} 44. Nd8+ Kg7) 44. Rc1 $1 $18 Nc4 {[#]} 45. Ne5 Nxd4 46. Rxg6+ Kh7 47. Rg5 Nxf3 48. Rxh5+ Kg7 49. Nxc4 dxc4 50. Rxc4 {aiming for Rc7+.} Kg6 51. Rd5 {White threatens Rc6+ and mate.} Kf6 52. Rc6+ Ke7 53. Rh5 {Threatening mate with Rh7+.} Nd4 54. Rh7+ {Weighted Error Value: White=0.16 (very precise) /Black=0.52} 1-0

[Event "FIDE WSCC 50 2022"]
[Site "Assisi"]
[Date "2022.11.15"]
[Round "1.29"]
[White "White, Nigel"]
[Black "Vinter-Schou, Uffe"]
[Result "0-1"]
[ECO "B33"]
[WhiteElo "2012"]
[BlackElo "2375"]
[Annotator "TA"]
[PlyCount "114"]
[EventDate "2022.11.14"]
[EventType "swiss"]
[EventCountry "ITA"]
[SourceTitle "playchess.com"]
[Source "ChessBase"]
[SourceQuality "1"]
[TimeControl "40/5400+30:1800+30"]

{[%evp 21,114,22,27,17,4,-1,56,52,60,64,60,44,51,44,43,0,0,0,-5,-8,0,0,0,-44,-37,-67,-60,-62,-48,-78,-69,-136,-141,-214,-218,-490,-485,-539,-268,-255,-219,-252,-260,-341,-324,-345,-301,-385,-366,-379,-311,-384,-386,-387,-344,-343,-307,-339,-340,-300,-223,-212,-217,-396,-362,-368,-320,-408,-408,-408,-401,-391,-363,-460,-453,-580,-580,-580,-576,-576,-568,-568,-568,-561,-547,-859,-608,-808,-780,-29977,-29978,-29987,-29988,-29988,-29989]} 1. e4 c5 2. Nf3 Nc6 3. d4 cxd4 4. Nxd4 Qb6 5. Nb3 Nf6 6. Nc3 e6 7. Bd3 Be7 8. O-O a6 9. a4 Qc7 10. f4 d6 11. Qe2 b6 12. Bd2 {B33: Sicilian: Pelikan and Sveshnikov Variations.} Bb7 {[%cal Bc8b7,Bb7d5,Bd5e6][%mdl 32]} 13. Rae1 Nd7 {[#]} (13... O-O $11) 14. Nd5 $1 {White is slightly better.} exd5 15. exd5 Nce5 16. fxe5 Nxe5 17. Bc3 {[#]} Bxd5 $146 ({Predecessor:} 17... O-O 18. Kh1 g6 19. Nd4 Bh4 20. Rd1 Rfe8 21. Qd2 Qe7 22. Nc6 Qg5 23. Qxg5 Bxg5 24. Nxe5 dxe5 {0-1 (35) Sanz Alonso,F (2410)-Barlov,D (2463) La Laguna 2009}) 18. Bxe5 (18. Nd4 $14 {feels stronger.}) 18... dxe5 $11 19. Qxe5 Qxe5 20. Rxe5 Be6 21. Re2 O-O 22. Nd2 Rfd8 23. Ne4 Rd4 24. Ra1 h5 25. Kf2 h4 {Black is more active. White is on the road to losing.} 26. Ke3 (26. Kg1 $15) 26... Rad8 $17 27. Kf2 (27. h3 $17) 27... Bg4 $19 28. Ree1 $2 (28. g3) 28... f5 29. Nd2 Bb4 (29... Bc5 $142 {[%cal Rd4f4]} 30. Kf1 Rf4+ 31. Nf3 h3) 30. Nf3 Bxe1+ 31. Rxe1 Bxf3 32. gxf3 Rxa4 {[%mdl 4096] Endgame KRR-KRB} 33. Re5 f4 34. Kg2 Rb4 35. Kh3 b5 36. Kxh4 Rxb2 37. Kg5 Rb4 38. h4 Rbd4 39. Be4 Rf8 40. Bd5+ Kh7 {aiming for ...Rd2.} 41. Be4+ {[#]} Kh8 $1 {Threatens to win with ...Rd2.} 42. h5 $2 (42. Kg4) 42... Rd6 43. Bf5 Rb6 44. Bd3 Rfb8 45. Kxf4 a5 {[%cal Ba6a5,Ba5a4,Ba4a3,Ba3a2][%mdl 32]} 46. Re7 Ra6 {Inhibits Ra7.} 47. Re5 a4 48. Bxb5 Ra5 49. c4 a3 {And now ...a2 would win.} 50. Re1 a2 51. Ra1 Rd8 52. Ke3 Ra3+ 53. Ke2 Rd4 {White must now prevent ...Rh4.} 54. Be8 Rxc4 {( -> ...Rc2+)} 55. Kd2 {Inhibits Rc2+.} Rh4 {Black mates.} 56. Bg6 Rh2+ 57. Kc1 Rc3+ {Weighted Error Value: White=0.67/Black=0.25 (precise)} 0-1

[Event "FIDE WSCC 50 2022"]
[Site "Assisi"]
[Date "2022.11.15"]
[Round "1.30"]
[White "Krizsany, Laszlo"]
[Black "Lescano, Ramon"]
[Result "1-0"]
[ECO "E73"]
[WhiteElo "2371"]
[BlackElo "2000"]
[Annotator "TA"]
[PlyCount "101"]
[EventDate "2022.11.14"]
[EventType "swiss"]
[EventCountry "ITA"]
[SourceTitle "playchess.com"]
[Source "ChessBase"]
[SourceQuality "1"]
[TimeControl "40/5400+30:1800+30"]

{[%evp 18,101,91,74,77,77,77,79,129,122,125,69,77,69,101,75,122,141,145,137,173,153,294,303,303,273,276,223,213,221,221,223,206,205,233,227,242,230,241,170,167,156,145,158,259,256,252,247,266,259,258,273,277,277,309,258,442,414,419,403,402,398,375,320,310,304,304,290,296,299,299,277,318,317,315,316,393,387,560,538,521,364,348,285,29978,29979]} 1. d4 Nf6 2. c4 g6 3. Nc3 Bg7 4. e4 d6 5. Be2 O-O 6. Bg5 h6 7. Be3 e5 8. d5 a5 9. Qd2 Kh7 10. f3 Nh5 {E73: King's Indian: Averbakh Variation without 6...c5.} 11. Bd1 Na6 12. Nge2 f5 (12... Qh4+ $142 13. g3 Qe7) 13. exf5 $1 $16 gxf5 {[#]} 14. O-O $146 (14. Bc2 $16) ({Predecessor:} 14. f4 Nc5 15. O-O Nf6 16. Bxc5 dxc5 17. fxe5 Ng4 18. e6 Bxe6 19. Nf4 Bd7 20. Bxg4 fxg4 {0-1 (28) Mancebo Ibanez,F (2260)-Sanchez Guirado,F (2360) Mislata 1996}) 14... f4 15. Bc2+ Kh8 16. Bf2 {White is more active.} (16. Qd3 $2 Bf5 17. Qd1 Bxc2 18. Qxc2 fxe3 $19) 16... Nc5 (16... b6 $142) 17. Bxc5 dxc5 18. Rad1 (18. Qd3 Bf5 19. Qd2 Bxc2 20. Qxc2 Nf6 $16) 18... Ra6 19. Ne4 {[%cal Bc3e4,Be4c5,Bc5e6][%mdl 32]} (19. Qd3 Bf5 20. Qd2 Qg5 $16) 19... Bf5 (19... Qe7 $16 20. N2c3 Bf5) 20. Nxc5 $18 {Pair of Knights!} Rg6 21. Ne6 (21. Nxb7 Qa8 $16) 21... Qf6 22. Bxf5 {Really sharp!} (22. Nxf8 $6 Bxf8 23. Bxf5 Qxf5 24. Qxa5 Qg5 $18) 22... Qxf5 23. Qd3 Qxd3 24. Rxd3 Rg8 25. Rf2 (25. Nxc7 e4 26. fxe4 Be5 $15) 25... c6 26. Nc3 cxd5 27. cxd5 Nf6 28. Re2 Nxd5 29. Rxd5 Rxe6 30. Rxa5 e4 (30... Rd8 $16 31. Rc5 e4) 31. Nxe4 ({Resist} 31. Rxe4 Rd6 32. Rd5 (32. Rxf4 Rd2 $14) 32... Rxd5 33. Nxd5 Bxb2 34. Nxf4 Ra8 $18) 31... Bd4+ 32. Kf1 Rc6 33. g3 Rc1+ {[#]} 34. Kg2 $1 Rg1+ 35. Kh3 Rf1 36. Rf5 Be3 (36... Rxf3 {might work better.} 37. Rd2 Bg7 38. Rxf4 Rxf4 39. gxf4 b5) 37. Rf7 {White threatens Nf6 and mate.} Rg7 38. Rf8+ Rg8 39. Rxg8+ Kxg8 40. gxf4 Bxf4 {[%mdl 4096] Endgame KRB-KRN} 41. Kg4 Bc1 42. Ng3 Rd1 43. Rc2 b6 44. f4 Be3 45. Nf5 h5+ 46. Kf3 Bc1 47. Ng3 {Against Rf1+} h4 (47... Kf7 $142 48. Nxh5 Rf1+ 49. Kg4 Be3) 48. Ne2 Bd2 49. Nc3 Bxc3 50. bxc3 Rg1 $2 {[#]} (50... Kh7 $18 51. Rb2 Rd3+ 52. Kg4 Rxc3 53. Kxh4 (53. Rxb6 Ra3 $16) 53... Ra3) 51. Rg2+ $1 {Weighted Error Value: White=0.15 (very precise) /Black=0.42} 1-0